[Event "*** SCC Grand Prix: Titled Tuesday Blitz"]
[Site "Chess.com"]
[Date "2020.10.06"]
[Round "4"]
[White "BanjoKazooieN64"]
[Black "maxsergej"]
[Result "1/2-1/2"]
[WhiteElo "2478"]
[BlackElo "2129"]
[TimeControl "180+1"]
[EndTime "10:35:11 PDT"]
[Termination "Game drawn by agreement"]

1. e4 {[%clk 0:02:27.2]} 1... c5 {[%clk 0:02:58.3]} 2. Nf3 {[%clk 0:02:25.8]}
2... Nc6 {[%clk 0:02:58.2]} 3. c3 {[%clk 0:02:25.5]} 3... Nf6 {[%clk 0:02:53.5]}
4. e5 {[%clk 0:02:25.4]} 4... Nd5 {[%clk 0:02:53]} 5. Bc4 {[%clk 0:02:25.7]}
5... Nb6 {[%clk 0:02:50.8]} 6. Be2 {[%clk 0:02:24.9]} 6... d6 {[%clk 0:02:50.3]}
7. exd6 {[%clk 0:02:24.2]} 7... Qxd6 {[%clk 0:02:48.8]} 8. O-O {[%clk
0:02:24.4]} 8... g6 {[%clk 0:02:47.3]} 9. d4 {[%clk 0:02:24.7]} 9... cxd4 {[%clk
0:02:46]} 10. cxd4 {[%clk 0:02:20.8]} 10... Bg7 {[%clk 0:02:46]} 11. Nc3 {[%clk
0:02:20.7]} 11... Nxd4 {[%clk 0:02:37.1]} 12. Nxd4 {[%clk 0:02:17.2]} 12... Qxd4
{[%clk 0:02:36.9]} 13. Qxd4 {[%clk 0:02:16.6]} 13... Bxd4 {[%clk 0:02:33.9]} 14.
Nb5 {[%clk 0:02:16.9]} 14... Be5 {[%clk 0:02:33.2]} 15. Bh6 {[%clk 0:02:17]}
15... a6 {[%clk 0:02:28]} 16. Nc3 {[%clk 0:02:09.8]} 16... Be6 {[%clk
0:02:27.3]} 17. Bf3 {[%clk 0:02:09.8]} 17... Rb8 {[%clk 0:02:06.1]} 18. Rfe1
{[%clk 0:02:03.7]} 18... Bf6 {[%clk 0:02:02.4]} 19. Ne4 {[%clk 0:02:02.4]} 19...
Nc4 {[%clk 0:01:44.6]} 20. Nxf6+ {[%clk 0:02:01.5]} 20... exf6 {[%clk
0:01:44.5]} 21. Bd5 {[%clk 0:02:02.2]} 21... Ne5 {[%clk 0:01:41]} 22. Bxe6
{[%clk 0:02:02.5]} 22... fxe6 {[%clk 0:01:40.7]} 23. Bf4 {[%clk 0:02:02.7]}
23... Rc8 {[%clk 0:01:35.3]} 24. Bxe5 {[%clk 0:02:02.6]} 24... fxe5 {[%clk
0:01:35.5]} 25. Rxe5 {[%clk 0:02:03.5]} 25... Kf7 {[%clk 0:01:35.4]} 26. Rae1
{[%clk 0:02:03.6]} 26... Rc6 {[%clk 0:01:35.1]} 1/2-1/2

[Event "*** SCC Grand Prix: Titled Tuesday Blitz"]
[Site "Chess.com"]
[Date "2020.10.06"]
[Round "4"]
[White "NotFischer"]
[Black "ChainsOfFantasia"]
[Result "0-1"]
[WhiteElo "2276"]
[BlackElo "2459"]
[TimeControl "180+1"]
[EndTime "10:35:16 PDT"]
[Termination "ChainsOfFantasia won by resignation"]

1. e4 {[%clk 0:02:59.5]} 1... c5 {[%clk 0:02:58.9]} 2. Nc3 {[%clk 0:02:59.5]}
2... Nc6 {[%clk 0:02:58.4]} 3. g3 {[%clk 0:02:59.1]} 3... g6 {[%clk 0:02:56.7]}
4. Bg2 {[%clk 0:02:59.2]} 4... Bg7 {[%clk 0:02:57.6]} 5. d3 {[%clk 0:02:59.3]}
5... e6 {[%clk 0:02:57.5]} 6. Nge2 {[%clk 0:02:59.5]} 6... Nge7 {[%clk
0:02:57.7]} 7. Be3 {[%clk 0:02:59.5]} 7... d5 {[%clk 0:02:58.6]} 8. Bxc5 {[%clk
0:02:58.1]} 8... d4 {[%clk 0:02:57.2]} 9. Nb1 {[%clk 0:02:49.7]} 9... Qa5+
{[%clk 0:02:56.7]} 10. b4 {[%clk 0:02:48.6]} 10... Nxb4 {[%clk 0:02:57.1]} 11.
Bxb4 {[%clk 0:02:41.4]} 11... Qxb4+ {[%clk 0:02:58]} 12. Nd2 {[%clk 0:02:40.2]}
12... O-O {[%clk 0:02:47.3]} 13. O-O {[%clk 0:02:40.2]} 13... Bd7 {[%clk
0:02:45.8]} 14. Rb1 {[%clk 0:02:40.1]} 14... Qa5 {[%clk 0:02:37.2]} 15. Rxb7
{[%clk 0:02:39.3]} 15... Rfd8 {[%clk 0:02:36.3]} 16. Nb3 {[%clk 0:02:31.5]}
16... Qa4 {[%clk 0:02:31]} 17. Qd2 {[%clk 0:02:16.5]} 17... Rac8 {[%clk
0:02:21.8]} 18. Rb4 {[%clk 0:02:10.2]} 18... Qxa2 {[%clk 0:02:19.5]} 19. Ra1
{[%clk 0:02:09.7]} 19... Qxc2 {[%clk 0:02:18.9]} 20. Rxa7 {[%clk 0:02:01.1]}
20... Qxd2 {[%clk 0:02:11.7]} 21. Nxd2 {[%clk 0:02:02]} 21... Nc6 {[%clk
0:02:12.2]} 22. Rxd7 {[%clk 0:01:55.8]} 22... Nxb4 {[%clk 0:02:09.5]} 23. Rxd8+
{[%clk 0:01:46.9]} 23... Rxd8 {[%clk 0:02:10.4]} 24. Nc1 {[%clk 0:01:41]} 24...
Rc8 {[%clk 0:02:00.1]} 25. Ncb3 {[%clk 0:01:40.8]} 25... Rc3 {[%clk 0:02:00.3]}
0-1

[Event "*** SCC Grand Prix: Titled Tuesday Blitz"]
[Site "Chess.com"]
[Date "2020.10.06"]
[Round "4"]
[White "Konavets"]
[Black "PavelShkapenko"]
[Result "1/2-1/2"]
[WhiteElo "2996"]
[BlackElo "2721"]
[TimeControl "180+1"]
[EndTime "10:35:35 PDT"]
[Termination "Game drawn by repetition"]

1. e4 {[%clk 0:03:00.9]} 1... e5 {[%clk 0:03:00]} 2. Nf3 {[%clk 0:02:57]} 2...
Nc6 {[%clk 0:03:00.4]} 3. d4 {[%clk 0:02:57.5]} 3... exd4 {[%clk 0:03:00.3]} 4.
Nxd4 {[%clk 0:02:58.4]} 4... Bc5 {[%clk 0:03:00.6]} 5. Nb3 {[%clk 0:02:58.5]}
5... Bb6 {[%clk 0:03:00.5]} 6. Nc3 {[%clk 0:02:59.4]} 6... Nge7 {[%clk
0:03:00.7]} 7. Qe2 {[%clk 0:02:59.1]} 7... O-O {[%clk 0:03:01.1]} 8. Be3 {[%clk
0:02:59.7]} 8... d6 {[%clk 0:02:57.6]} 9. O-O-O {[%clk 0:02:59.9]} 9... f5
{[%clk 0:02:57.9]} 10. f3 {[%clk 0:03:00.2]} 10... f4 {[%clk 0:02:52]} 11. Bd2
{[%clk 0:03:00.6]} 11... Be6 {[%clk 0:02:49.7]} 12. Kb1 {[%clk 0:03:00.6]} 12...
Kh8 {[%clk 0:02:40.6]} 13. Qe1 {[%clk 0:03:00.7]} 13... Qe8 {[%clk 0:02:28.9]}
14. h4 {[%clk 0:02:59.8]} 14... Qf7 {[%clk 0:02:27.7]} 15. h5 {[%clk 0:02:59.4]}
15... h6 {[%clk 0:02:24.7]} 16. Be2 {[%clk 0:02:56.1]} 16... Ne5 {[%clk
0:02:23.1]} 17. g3 {[%clk 0:02:52.9]} 17... fxg3 {[%clk 0:02:21.2]} 18. Qxg3
{[%clk 0:02:53.8]} 18... Nxf3 {[%clk 0:02:15.9]} 19. Bc1 {[%clk 0:02:39.6]}
19... Ne5 {[%clk 0:02:14.5]} 20. Rdf1 {[%clk 0:02:39.3]} 20... Qg8 {[%clk
0:02:14.7]} 21. Qh4 {[%clk 0:02:36.1]} 21... N7c6 {[%clk 0:01:59.6]} 22. Nd5
{[%clk 0:02:26.7]} 22... Bxd5 {[%clk 0:01:59.7]} 23. exd5 {[%clk 0:02:27.6]}
23... Qxd5 {[%clk 0:02:00]} 24. Rd1 {[%clk 0:02:21]} 24... Qg2 {[%clk
0:01:49.3]} 25. Rh2 {[%clk 0:02:14.7]} 25... Nf3 {[%clk 0:01:35.8]} 26. Bxf3
{[%clk 0:01:56.7]} 26... Qxf3 {[%clk 0:01:35.7]} 27. Rd3 {[%clk 0:01:57.6]}
27... Qf6 {[%clk 0:01:31.6]} 28. Qh3 {[%clk 0:01:54.5]} 28... Qf5 {[%clk
0:01:27.7]} 29. Qh4 {[%clk 0:01:51.5]} 29... Qf6 {[%clk 0:01:26.9]} 30. Qh3
{[%clk 0:01:51.5]} 30... Qf5 {[%clk 0:01:27.3]} 31. Qh4 {[%clk 0:01:52.1]} 31...
Qf6 {[%clk 0:01:27.8]} 1/2-1/2

[Event "*** SCC Grand Prix: Titled Tuesday Blitz"]
[Site "Chess.com"]
[Date "2020.10.06"]
[Round "4"]
[White "As0nchess"]
[Black "GoltsevDmitry2000"]
[Result "0-1"]
[WhiteElo "2503"]
[BlackElo "2716"]
[TimeControl "180+1"]
[EndTime "10:35:41 PDT"]
[Termination "GoltsevDmitry2000 won by resignation"]

1. e4 {[%clk 0:03:00.9]} 1... c5 {[%clk 0:02:59.7]} 2. Nf3 {[%clk 0:03:00.9]}
2... e6 {[%clk 0:02:59.7]} 3. d4 {[%clk 0:03:01.1]} 3... cxd4 {[%clk 0:02:58.9]}
4. Nxd4 {[%clk 0:03:02]} 4... a6 {[%clk 0:02:58.5]} 5. c4 {[%clk 0:03:01.7]}
5... Qc7 {[%clk 0:02:58.6]} 6. Nc3 {[%clk 0:03:01.7]} 6... Nf6 {[%clk
0:02:58.5]} 7. Be2 {[%clk 0:03:02]} 7... Nc6 {[%clk 0:02:55.1]} 8. Be3 {[%clk
0:02:59.5]} 8... Bb4 {[%clk 0:02:54.7]} 9. f3 {[%clk 0:02:44.8]} 9... d5 {[%clk
0:02:48.5]} 10. Nxc6 {[%clk 0:02:32.3]} 10... bxc6 {[%clk 0:02:46.1]} 11. cxd5
{[%clk 0:02:15]} 11... exd5 {[%clk 0:02:42.3]} 12. Qa4 {[%clk 0:02:06.2]} 12...
Rb8 {[%clk 0:02:27]} 13. O-O {[%clk 0:01:44]} 13... O-O {[%clk 0:02:20.7]} 14.
exd5 {[%clk 0:01:42.9]} 14... cxd5 {[%clk 0:02:17.7]} 15. Bd4 {[%clk 0:01:38.9]}
15... Bc5 {[%clk 0:02:11.4]} 16. Kh1 {[%clk 0:01:31.9]} 16... Rb4 {[%clk
0:02:10.7]} 17. Bxc5 {[%clk 0:01:23.4]} 17... Rxa4 {[%clk 0:02:09.8]} 18. Nxa4
{[%clk 0:01:19.4]} 18... Re8 {[%clk 0:02:09.5]} 19. Bd1 {[%clk 0:01:14.5]} 19...
Bd7 {[%clk 0:02:07.9]} 20. Bd4 {[%clk 0:01:14.5]} 20... Qc4 {[%clk 0:02:02.8]}
21. Bb3 {[%clk 0:01:05.3]} 21... Qxd4 {[%clk 0:02:00.7]} 0-1

[Event "*** SCC Grand Prix: Titled Tuesday Blitz"]
[Site "Chess.com"]
[Date "2020.10.06"]
[Round "4"]
[White "ENajer77"]
[Black "Caterpiller35"]
[Result "1-0"]
[WhiteElo "2713"]
[BlackElo "2499"]
[TimeControl "180+1"]
[EndTime "10:35:59 PDT"]
[Termination "ENajer77 won by checkmate"]

1. d4 {[%clk 0:03:00.9]} 1... Nf6 {[%clk 0:02:59.9]} 2. c4 {[%clk 0:03:00]} 2...
e6 {[%clk 0:02:59.9]} 3. Nc3 {[%clk 0:02:58.8]} 3... Bb4 {[%clk 0:02:59.6]} 4.
e3 {[%clk 0:02:58.6]} 4... Ne4 {[%clk 0:02:59.3]} 5. Qc2 {[%clk 0:02:57.9]} 5...
f5 {[%clk 0:02:58.4]} 6. Bd3 {[%clk 0:02:56.3]} 6... O-O {[%clk 0:02:58.4]} 7.
Ne2 {[%clk 0:02:44.6]} 7... b6 {[%clk 0:02:57.1]} 8. O-O {[%clk 0:02:42.7]} 8...
Nxc3 {[%clk 0:02:56.3]} 9. bxc3 {[%clk 0:02:41.5]} 9... Bd6 {[%clk 0:02:51.4]}
10. e4 {[%clk 0:02:41.2]} 10... g6 {[%clk 0:02:33.9]} 11. e5 {[%clk 0:01:57.3]}
11... Be7 {[%clk 0:02:33.6]} 12. Bh6 {[%clk 0:01:55.7]} 12... Rf7 {[%clk
0:02:33.2]} 13. d5 {[%clk 0:01:47.8]} 13... d6 {[%clk 0:02:18.6]} 14. dxe6
{[%clk 0:01:25.6]} 14... Bxe6 {[%clk 0:02:19.5]} 15. Nd4 {[%clk 0:01:26]} 15...
Qd7 {[%clk 0:02:07.3]} 16. exd6 {[%clk 0:01:21.7]} 16... Qxd6 {[%clk 0:01:46.8]}
17. c5 {[%clk 0:01:20.3]} 17... bxc5 {[%clk 0:01:33.6]} 18. Nxe6 {[%clk
0:01:20.4]} 18... Qxe6 {[%clk 0:01:30.6]} 19. Rfe1 {[%clk 0:01:21]} 19... Qf6
{[%clk 0:01:26.1]} 20. Bc4 {[%clk 0:01:19.2]} 20... Bd6 {[%clk 0:01:23.7]} 21.
Re8+ {[%clk 0:01:16.6]} 21... Bf8 {[%clk 0:01:23.6]} 22. Rxf8# {[%clk
0:01:16.1]} 1-0

[Event "*** SCC Grand Prix: Titled Tuesday Blitz"]
[Site "Chess.com"]
[Date "2020.10.06"]
[Round "4"]
[White "diablanni"]
[Black "Fy_Rakotomaharo"]
[Result "0-1"]
[WhiteElo "2394"]
[BlackElo "2625"]
[TimeControl "180+1"]
[EndTime "10:36:19 PDT"]
[Termination "Fy_Rakotomaharo won by resignation"]

1. e4 {[%clk 0:02:59.6]} 1... e5 {[%clk 0:03:00.2]} 2. Nf3 {[%clk 0:02:59.2]}
2... Nc6 {[%clk 0:03:00.8]} 3. d4 {[%clk 0:02:58.6]} 3... exd4 {[%clk
0:03:00.7]} 4. Nxd4 {[%clk 0:02:58.3]} 4... Bc5 {[%clk 0:03:01.2]} 5. Nxc6
{[%clk 0:02:58]} 5... Qf6 {[%clk 0:03:00.6]} 6. Qf3 {[%clk 0:02:55.1]} 6... dxc6
{[%clk 0:03:00.8]} 7. Bc4 {[%clk 0:02:54]} 7... Qg6 {[%clk 0:03:01.1]} 8. Nd2
{[%clk 0:01:37.9]} 8... Nf6 {[%clk 0:02:49.4]} 9. O-O {[%clk 0:01:34.6]} 9...
O-O {[%clk 0:02:40.1]} 10. e5 {[%clk 0:01:13.4]} 10... Ng4 {[%clk 0:02:36.2]}
11. Qg3 {[%clk 0:01:05]} 11... Re8 {[%clk 0:02:06.9]} 12. Bd3 {[%clk 0:01:01.3]}
12... Bf5 {[%clk 0:01:56.2]} 13. Nf3 {[%clk 0:00:56.3]} 13... Bxd3 {[%clk
0:01:50.2]} 14. cxd3 {[%clk 0:00:51.2]} 14... Nxe5 {[%clk 0:01:46.9]} 15. Nxe5
{[%clk 0:00:50.6]} 15... Qxg3 {[%clk 0:01:46.6]} 16. hxg3 {[%clk 0:00:50.9]}
16... Rxe5 {[%clk 0:01:46.8]} 17. Bf4 {[%clk 0:00:51]} 17... Re2 {[%clk
0:01:44.1]} 18. Rab1 {[%clk 0:00:45.3]} 18... Bb6 {[%clk 0:01:38.6]} 0-1

[Event "*** SCC Grand Prix: Titled Tuesday Blitz"]
[Site "Chess.com"]
[Date "2020.10.06"]
[Round "4"]
[White "ferdipy"]
[Black "chessplayer9919"]
[Result "0-1"]
[WhiteElo "2379"]
[BlackElo "2611"]
[TimeControl "180+1"]
[EndTime "10:36:22 PDT"]
[Termination "chessplayer9919 won by resignation"]

1. e4 {[%clk 0:03:00.9]} 1... e5 {[%clk 0:02:58.5]} 2. Nf3 {[%clk 0:03:00.3]}
2... Nc6 {[%clk 0:02:58.6]} 3. Bc4 {[%clk 0:03:00.2]} 3... Nf6 {[%clk
0:02:58.6]} 4. Ng5 {[%clk 0:03:00.4]} 4... d5 {[%clk 0:02:58.3]} 5. exd5 {[%clk
0:03:01.3]} 5... Na5 {[%clk 0:02:58.6]} 6. Bb5+ {[%clk 0:03:01.9]} 6... Bd7
{[%clk 0:02:58.9]} 7. Qe2 {[%clk 0:03:00.1]} 7... Be7 {[%clk 0:02:56.8]} 8. Nc3
{[%clk 0:02:56.7]} 8... O-O {[%clk 0:02:26.3]} 9. Nge4 {[%clk 0:02:40.7]} 9...
Nxe4 {[%clk 0:01:50.1]} 10. Qxe4 {[%clk 0:02:35.2]} 10... f5 {[%clk 0:01:39.9]}
11. Qa4 {[%clk 0:02:30.3]} 11... c6 {[%clk 0:01:19.8]} 12. dxc6 {[%clk
0:02:27.6]} 12... Nxc6 {[%clk 0:01:15.5]} 13. d3 {[%clk 0:02:20.4]} 13... a6
{[%clk 0:01:11.4]} 14. Bc4+ {[%clk 0:02:19.9]} 14... Kh8 {[%clk 0:01:11.4]} 15.
Bd5 {[%clk 0:01:43.4]} 15... Nd4 {[%clk 0:01:08.6]} 16. Qc4 {[%clk 0:01:11.4]}
16... Rc8 {[%clk 0:01:00.4]} 0-1

[Event "*** SCC Grand Prix: Titled Tuesday Blitz"]
[Site "Chess.com"]
[Date "2020.10.06"]
[Round "4"]
[White "chessdjw"]
[Black "GM_Levan_Pantsulaia"]
[Result "1-0"]
[WhiteElo "2645"]
[BlackElo "2786"]
[TimeControl "180+1"]
[EndTime "10:36:34 PDT"]
[Termination "chessdjw won by resignation"]

1. c4 {[%clk 0:03:00.9]} 1... c5 {[%clk 0:02:59]} 2. Nf3 {[%clk 0:03:00.2]} 2...
b6 {[%clk 0:02:58.6]} 3. e4 {[%clk 0:02:52.6]} 3... Bb7 {[%clk 0:02:58.3]} 4.
Nc3 {[%clk 0:02:53.1]} 4... e6 {[%clk 0:02:58.7]} 5. d4 {[%clk 0:02:52.2]} 5...
cxd4 {[%clk 0:02:59.4]} 6. Nxd4 {[%clk 0:02:51.1]} 6... d6 {[%clk 0:02:59.8]} 7.
Be2 {[%clk 0:02:49.5]} 7... Nf6 {[%clk 0:02:59.9]} 8. f3 {[%clk 0:02:47.9]} 8...
a6 {[%clk 0:03:00.5]} 9. O-O {[%clk 0:02:47.3]} 9... Be7 {[%clk 0:03:01.1]} 10.
Be3 {[%clk 0:02:44.7]} 10... O-O {[%clk 0:03:01.5]} 11. Kh1 {[%clk 0:02:43.2]}
11... Nbd7 {[%clk 0:03:00.8]} 12. Qe1 {[%clk 0:02:42.3]} 12... Qc7 {[%clk
0:03:00.4]} 13. g4 {[%clk 0:02:36]} 13... Rac8 {[%clk 0:02:53.9]} 14. g5 {[%clk
0:02:35]} 14... Ne8 {[%clk 0:02:53.4]} 15. Rd1 {[%clk 0:02:24.9]} 15... Ne5
{[%clk 0:02:39.9]} 16. b3 {[%clk 0:02:18.4]} 16... b5 {[%clk 0:02:40]} 17. f4
{[%clk 0:02:14.8]} 17... b4 {[%clk 0:02:37.8]} 18. Nd5 {[%clk 0:01:49.5]} 18...
exd5 {[%clk 0:02:37.4]} 19. exd5 {[%clk 0:01:42.7]} 19... Nd7 {[%clk 0:02:32.9]}
20. Nf5 {[%clk 0:01:37]} 20... Nc5 {[%clk 0:02:19.7]} 21. Bd4 {[%clk 0:01:34.7]}
21... Bd8 {[%clk 0:02:11.9]} 22. Bg4 {[%clk 0:01:32.8]} 22... Rb8 {[%clk
0:02:00.7]} 23. Qh4 {[%clk 0:01:26.3]} 23... Bc8 {[%clk 0:01:48.5]} 24. Rf3
{[%clk 0:00:44.9]} 24... Bxf5 {[%clk 0:01:42.6]} 25. Bxf5 {[%clk 0:00:44.7]}
25... g6 {[%clk 0:01:43.1]} 26. Qxh7+ {[%clk 0:00:43.4]} 1-0

[Event "*** SCC Grand Prix: Titled Tuesday Blitz"]
[Site "Chess.com"]
[Date "2020.10.06"]
[Round "4"]
[White "Kotofeyca"]
[Black "UCantHandleDenker"]
[Result "0-1"]
[WhiteElo "2351"]
[BlackElo "2555"]
[TimeControl "180+1"]
[EndTime "10:36:39 PDT"]
[Termination "UCantHandleDenker won by resignation"]

1. d4 {[%clk 0:03:00.9]} 1... Nf6 {[%clk 0:02:58.6]} 2. c4 {[%clk 0:03:00.9]}
2... c5 {[%clk 0:02:53.6]} 3. Nf3 {[%clk 0:03:00.3]} 3... g6 {[%clk 0:02:51.8]}
4. Nc3 {[%clk 0:03:00.7]} 4... Bg7 {[%clk 0:02:51.9]} 5. g3 {[%clk 0:03:00.5]}
5... O-O {[%clk 0:02:51.5]} 6. Bg2 {[%clk 0:03:00.9]} 6... cxd4 {[%clk
0:02:52.1]} 7. Nxd4 {[%clk 0:03:01.6]} 7... Nc6 {[%clk 0:02:52.7]} 8. O-O {[%clk
0:03:01.3]} 8... d6 {[%clk 0:02:52.5]} 9. Nxc6 {[%clk 0:03:00.5]} 9... bxc6
{[%clk 0:02:53.4]} 10. Bxc6 {[%clk 0:03:00.7]} 10... Rb8 {[%clk 0:02:52.7]} 11.
Qc2 {[%clk 0:02:50.1]} 11... Qa5 {[%clk 0:02:49.5]} 12. Bg2 {[%clk 0:02:27.3]}
12... Be6 {[%clk 0:02:43.6]} 13. b3 {[%clk 0:02:11.9]} 13... Bf5 {[%clk
0:02:42.2]} 14. e4 {[%clk 0:01:17.1]} 14... Nxe4 {[%clk 0:02:39.1]} 15. Bxe4
{[%clk 0:00:30]} 15... Qxc3 {[%clk 0:01:35.8]} 16. Rb1 {[%clk 0:00:16.5]} 16...
Qxc2 {[%clk 0:01:34.1]} 17. Bxc2 {[%clk 0:00:17.4]} 17... Bxc2 {[%clk
0:01:33.7]} 0-1

[Event "*** SCC Grand Prix: Titled Tuesday Blitz"]
[Site "Chess.com"]
[Date "2020.10.06"]
[Round "4"]
[White "Mostii"]
[Black "pavelalexandru07"]
[Result "1-0"]
[WhiteElo "2430"]
[BlackElo "2241"]
[TimeControl "180+1"]
[EndTime "10:36:42 PDT"]
[Termination "Mostii won by resignation"]

1. d4 {[%clk 0:03:00.9]} 1... d5 {[%clk 0:02:57.6]} 2. Nf3 {[%clk 0:03:01.8]}
2... Nf6 {[%clk 0:02:56.4]} 3. g3 {[%clk 0:03:02.7]} 3... e6 {[%clk 0:02:51.9]}
4. Bg2 {[%clk 0:03:03.1]} 4... b5 {[%clk 0:02:52.5]} 5. O-O {[%clk 0:03:03.8]}
5... Bd6 {[%clk 0:02:51.1]} 6. b3 {[%clk 0:03:04.7]} 6... O-O {[%clk 0:02:50]}
7. Nbd2 {[%clk 0:03:05.6]} 7... c5 {[%clk 0:02:48.6]} 8. c4 {[%clk 0:03:05.8]}
8... cxd4 {[%clk 0:02:35.5]} 9. Nxd4 {[%clk 0:03:03.8]} 9... bxc4 {[%clk
0:02:35.4]} 10. bxc4 {[%clk 0:03:03.5]} 10... Bb7 {[%clk 0:02:13.9]} 11. Rb1
{[%clk 0:03:01.5]} 11... Qc8 {[%clk 0:02:10.3]} 12. Qb3 {[%clk 0:02:39]} 12...
Ba6 {[%clk 0:01:51.4]} 13. cxd5 {[%clk 0:02:38.7]} 13... exd5 {[%clk 0:01:49.6]}
14. Bxd5 {[%clk 0:02:39.6]} 14... Nxd5 {[%clk 0:01:49.3]} 15. Qxd5 {[%clk
0:02:39.2]} 15... Bc5 {[%clk 0:01:37.7]} 16. Qxa8 {[%clk 0:02:26.4]} 16... Bxd4
{[%clk 0:01:36.5]} 17. Ba3 {[%clk 0:02:18.2]} 17... Nd7 {[%clk 0:01:17.5]} 18.
Qxc8 {[%clk 0:02:07.5]} 18... Rxc8 {[%clk 0:01:18.4]} 19. Nb3 {[%clk 0:02:04.9]}
19... Bb6 {[%clk 0:01:16.6]} 20. Rbc1 {[%clk 0:01:58]} 20... Re8 {[%clk
0:01:16.1]} 21. Rfd1 {[%clk 0:01:56.4]} 21... Ne5 {[%clk 0:01:01.9]} 22. Rc2
{[%clk 0:01:48.6]} 22... Ng4 {[%clk 0:00:39.1]} 23. Bc5 {[%clk 0:01:44.9]} 1-0

[Event "*** SCC Grand Prix: Titled Tuesday Blitz"]
[Site "Chess.com"]
[Date "2020.10.06"]
[Round "4"]
[White "Sven_Tica"]
[Black "fireheart92"]
[Result "0-1"]
[WhiteElo "2650"]
[BlackElo "2873"]
[TimeControl "180+1"]
[EndTime "10:36:45 PDT"]
[Termination "fireheart92 won by resignation"]

1. d4 {[%clk 0:03:00.9]} 1... Nf6 {[%clk 0:02:59.5]} 2. Nf3 {[%clk 0:03:00.7]}
2... g6 {[%clk 0:02:58.8]} 3. Nbd2 {[%clk 0:03:00.8]} 3... d5 {[%clk 0:02:55.9]}
4. e3 {[%clk 0:03:01.2]} 4... Bg7 {[%clk 0:02:41.7]} 5. b4 {[%clk 0:03:01.2]}
5... a5 {[%clk 0:02:41.3]} 6. b5 {[%clk 0:03:00.9]} 6... a4 {[%clk 0:02:41.3]}
7. Be2 {[%clk 0:02:55.6]} 7... c5 {[%clk 0:02:40.8]} 8. c4 {[%clk 0:02:50]} 8...
cxd4 {[%clk 0:02:37.5]} 9. Nxd4 {[%clk 0:02:47.2]} 9... O-O {[%clk 0:02:36.9]}
10. O-O {[%clk 0:02:46.2]} 10... e5 {[%clk 0:01:58.4]} 11. N4f3 {[%clk
0:02:45.6]} 11... d4 {[%clk 0:01:55]} 12. Nxe5 {[%clk 0:02:26.6]} 12... dxe3
{[%clk 0:01:50.6]} 13. Ndf3 {[%clk 0:02:19.1]} 13... exf2+ {[%clk 0:01:45.2]}
14. Rxf2 {[%clk 0:02:14.3]} 14... Ng4 {[%clk 0:01:39.3]} 15. Nxg4 {[%clk
0:02:01.1]} 15... Bxg4 {[%clk 0:01:35.6]} 16. Qxd8 {[%clk 0:01:50.1]} 16... Rxd8
{[%clk 0:01:36.5]} 17. Bg5 {[%clk 0:01:50.4]} 17... Bxa1 {[%clk 0:01:14.9]} 18.
Bxd8 {[%clk 0:01:48.9]} 18... Nd7 {[%clk 0:01:14.9]} 19. Rf1 {[%clk 0:01:34.2]}
19... Bxf3 {[%clk 0:01:08.7]} 20. Bxf3 {[%clk 0:01:24.9]} 20... Bd4+ {[%clk
0:01:07.9]} 21. Kh1 {[%clk 0:01:25.5]} 21... Rxd8 {[%clk 0:01:07.8]} 22. Bxb7
{[%clk 0:01:26.2]} 22... Nb6 {[%clk 0:00:57.6]} 23. Rc1 {[%clk 0:01:19.7]} 23...
Be3 {[%clk 0:00:56]} 24. Re1 {[%clk 0:01:18]} 24... Nxc4 {[%clk 0:00:55.9]} 25.
g3 {[%clk 0:01:18.7]} 25... Bb6 {[%clk 0:00:53.1]} 26. Re4 {[%clk 0:01:15]}
26... Nd6 {[%clk 0:00:47.6]} 0-1

[Event "*** SCC Grand Prix: Titled Tuesday Blitz"]
[Site "Chess.com"]
[Date "2020.10.06"]
[Round "4"]
[White "Ermito2020"]
[Black "Salem-AR"]
[Result "1-0"]
[WhiteElo "2662"]
[BlackElo "2897"]
[TimeControl "180+1"]
[EndTime "10:36:55 PDT"]
[Termination "Ermito2020 won by resignation"]

1. e4 {[%clk 0:03:00.9]} 1... c5 {[%clk 0:03:00.4]} 2. Nf3 {[%clk 0:03:01.1]}
2... d6 {[%clk 0:03:01.1]} 3. d4 {[%clk 0:03:01.7]} 3... cxd4 {[%clk 0:03:02]}
4. Nxd4 {[%clk 0:03:02.4]} 4... Nf6 {[%clk 0:03:02.9]} 5. Nc3 {[%clk 0:03:03]}
5... a6 {[%clk 0:03:03.7]} 6. Nb3 {[%clk 0:03:03.6]} 6... e6 {[%clk 0:03:00.7]}
7. g4 {[%clk 0:03:03.4]} 7... h6 {[%clk 0:03:01.4]} 8. Be3 {[%clk 0:02:58.6]}
8... b5 {[%clk 0:02:59.4]} 9. Bg2 {[%clk 0:02:58.4]} 9... Bb7 {[%clk 0:02:59]}
10. a3 {[%clk 0:02:54.1]} 10... Nc6 {[%clk 0:02:49.2]} 11. f4 {[%clk 0:02:47.5]}
11... Rc8 {[%clk 0:02:44.3]} 12. O-O {[%clk 0:02:42]} 12... Be7 {[%clk
0:02:40.6]} 13. h4 {[%clk 0:02:41.7]} 13... h5 {[%clk 0:02:37.3]} 14. g5 {[%clk
0:02:37.7]} 14... Ng4 {[%clk 0:02:37.3]} 15. Qe2 {[%clk 0:02:38.3]} 15... Na5
{[%clk 0:02:20.7]} 16. Nxa5 {[%clk 0:02:23.9]} 16... Qxa5 {[%clk 0:02:21.6]} 17.
Bd2 {[%clk 0:01:55.2]} 17... Qb6+ {[%clk 0:02:16.5]} 18. Kh1 {[%clk 0:01:55.5]}
18... O-O {[%clk 0:01:40.8]} 19. Bf3 {[%clk 0:01:51.6]} 19... Rc4 {[%clk
0:01:38.9]} 20. Rae1 {[%clk 0:01:42.1]} 20... Rfc8 {[%clk 0:01:37.9]} 21. Bxg4
{[%clk 0:01:33.7]} 21... hxg4 {[%clk 0:01:38.8]} 22. Qxg4 {[%clk 0:01:34.3]}
22... Bf8 {[%clk 0:00:27.7]} 23. g6 {[%clk 0:01:24.1]} 23... f5 {[%clk
0:00:26.5]} 24. Qh5 {[%clk 0:01:21]} 1-0